[Event "Titled Tuesday Blitz July 4 Early 2023"]
[White "Kukreja Sankalp"]
[Black "realmadridfc123"]
[WhiteFideId "45027676"]
[WhiteElo "2349"]
[BlackElo "2739"]
[Result "1-0"]
[Round "5"]
[TimeControl "180+2"]
[Date "2023.07.04"]
[WhiteClock "0:00:18"]
[BlackClock "0:00:02"]
[Board "161"]

1. e4 {[%clk 0:03:00]}  e5 {[%clk 0:03:00]} 2. Nf3 {[%clk 0:03:00]}  Nc6 {[%clk 0:03:00]} 3. Bc4 {[%clk 0:02:59]}  Bc5 {[%clk 0:03:00]} 4. c3 {[%clk 0:02:57]}  Nf6 {[%clk 0:03:00]} 5. d3 {[%clk 0:02:56]}  d6 {[%clk 0:03:01]} 6. O-O {[%clk 0:02:48]}  O-O {[%clk 0:02:54]} 7. h3 {[%clk 0:02:42]}  h6 {[%clk 0:02:51]} 8. Nbd2 {[%clk 0:02:38]}  a6 {[%clk 0:02:51]} 9. Bb3 {[%clk 0:02:39]}  Re8 {[%clk 0:02:46]} 10. Re1 {[%clk 0:02:38]}  Be6 {[%clk 0:02:45]} 11. Nf1 {[%clk 0:02:34]}  d5 {[%clk 0:02:38]} 12. exd5 {[%clk 0:02:30]}  Nxd5 {[%clk 0:02:39]} 13. Ng3 {[%clk 0:02:20]}  Bb6 {[%clk 0:02:06]} 14. Ba4 {[%clk 0:02:01]}  Nf4 {[%clk 0:01:59]} 15. Bxf4 {[%clk 0:01:34]}  exf4 {[%clk 0:01:59]} 16. Nh5 {[%clk 0:01:33]}  Qd6 {[%clk 0:01:46]} 17. d4 {[%clk 0:01:33]}  Rad8 {[%clk 0:01:46]} 18. Qd2 {[%clk 0:01:32]}  Bd5 {[%clk 0:01:41]} 19. Qxf4 {[%clk 0:01:28]}  Qxf4 {[%clk 0:01:41]} 20. Nxf4 {[%clk 0:01:29]}  Bxf3 {[%clk 0:01:41]} 21. gxf3 {[%clk 0:01:30]}  Rxe1+ {[%clk 0:01:35]} 22. Rxe1 {[%clk 0:01:31]}  Na5 {[%clk 0:01:36]} 23. Re7 {[%clk 0:01:25]}  Nc4 {[%clk 0:01:07]} 24. Bb3 {[%clk 0:01:25]}  Kf8 {[%clk 0:01:05]} 25. Re2 {[%clk 0:01:17]}  Nd6 {[%clk 0:01:03]} 26. Nd5 {[%clk 0:01:16]}  Ba5 {[%clk 0:01:01]} 27. Bc2 {[%clk 0:01:03]}  c6 {[%clk 0:01:01]} 28. Ne3 {[%clk 0:01:00]}  Bc7 {[%clk 0:01:01]} 29. Bd3 {[%clk 0:00:54]}  g6 {[%clk 0:00:50]} 30. Nc4 {[%clk 0:00:54]}  Nc8 {[%clk 0:00:49]} 31. a4 {[%clk 0:00:51]}  Ne7 {[%clk 0:00:49]} 32. Ne5 {[%clk 0:00:46]}  Nd5 {[%clk 0:00:49]} 33. Re4 {[%clk 0:00:35]}  Kg7 {[%clk 0:00:32]} 34. Bc4 {[%clk 0:00:34]}  f5 {[%clk 0:00:32]} 35. Re1 {[%clk 0:00:30]}  Nf4 {[%clk 0:00:31]} 36. Nxc6 {[%clk 0:00:23]}  Nxh3+ {[%clk 0:00:25]} 37. Kf1 {[%clk 0:00:24]}  Rd7 {[%clk 0:00:15]} 38. Ne5 {[%clk 0:00:20]}  Bxe5 {[%clk 0:00:15]} 39. Rxe5 {[%clk 0:00:19]}  Ng5 {[%clk 0:00:16]} 40. Kg2 {[%clk 0:00:18]}  h5 {[%clk 0:00:14]} 41. f4 {[%clk 0:00:17]}  Ne4 {[%clk 0:00:12]} 42. f3 {[%clk 0:00:17]}  Nd2 {[%clk 0:00:10]} 43. Bd5 {[%clk 0:00:18]}  Rc7 {[%clk 0:00:04]} 44. Kf2 {[%clk 0:00:18]}  h4 {[%clk 0:00:03]} 45. Kg2 {[%clk 0:00:17]}  Kf6 {[%clk 0:00:02]} 46. Kh3 {[%clk 0:00:17]}  Nc4 {[%clk 0:00:01]} 47. Re6+ {[%clk 0:00:16]}  Kg7 {[%clk 0:00:02]} 48. Kxh4 {[%clk 0:00:14]}  Nxb2 {[%clk 0:00:02]} 49. Kg5 {[%clk 0:00:14]}  Nxa4 {[%clk 0:00:02]} 50. Rxg6+ {[%clk 0:00:14]}  Kf8 {[%clk 0:00:03]} 51. Kf6 {[%clk 0:00:15]}  Rc6+ {[%clk 0:00:01]} 52. Bxc6 {[%clk 0:00:15]}  bxc6 {[%clk 0:00:02]} 53. Kxf5 {[%clk 0:00:16]}  Nxc3 {[%clk 0:00:03]} 54. Rxc6 {[%clk 0:00:16]}  Nb5 {[%clk 0:00:03]} 55. Rxa6 {[%clk 0:00:16]}  Nxd4+ {[%clk 0:00:03]} 56. Kf6 {[%clk 0:00:17]}  Ke8 {[%clk 0:00:04]} 57. Ra8+ {[%clk 0:00:17]}  Kd7 {[%clk 0:00:04]} 58. f5 {[%clk 0:00:18]}  Nxf3 {[%clk 0:00:04]} 59. Kg7 {[%clk 0:00:18]}  Nd4 {[%clk 0:00:04]} 60. f6 {[%clk 0:00:19]}  Ne6+ {[%clk 0:00:02]} 61. Kg8 {[%clk 0:00:18]} 1-0


[Site "https://www.chess.com"]

[Event "Titled Tuesday Blitz July 4 Early 2023"]
[White "Shuvalova, Polina"]
[Black "Nithyalakshmi, Sivanesan"]
[WhiteFideId "24171760"]
[BlackFideId "5706955"]
[WhiteElo "2701"]
[BlackElo "2345"]
[Result "0-1"]
[Round "5"]
[TimeControl "180+2"]
[Date "2023.07.04"]
[WhiteClock "0:00:07"]
[BlackClock "0:00:04"]
[Board "162"]

1. Nf3 {[%clk 0:03:00]}  Nf6 {[%clk 0:02:58]} 2. d4 {[%clk 0:03:00]}  c5 {[%clk 0:02:49]} 3. d5 {[%clk 0:02:57]}  d6 {[%clk 0:02:41]} 4. c4 {[%clk 0:02:53]}  b5 {[%clk 0:02:40]} 5. cxb5 {[%clk 0:02:52]}  a6 {[%clk 0:02:40]} 6. bxa6 {[%clk 0:02:51]}  Bxa6 {[%clk 0:02:40]} 7. Nc3 {[%clk 0:02:51]}  g6 {[%clk 0:02:37]} 8. e4 {[%clk 0:02:47]}  Bxf1 {[%clk 0:02:37]} 9. Kxf1 {[%clk 0:02:48]}  Bg7 {[%clk 0:02:36]} 10. g3 {[%clk 0:02:47]}  O-O {[%clk 0:02:36]} 11. Kg2 {[%clk 0:02:48]}  Nbd7 {[%clk 0:02:27]} 12. a4 {[%clk 0:02:43]}  Ra6 {[%clk 0:02:12]} 13. Re1 {[%clk 0:02:38]}  Qa8 {[%clk 0:02:10]} 14. Ra2 {[%clk 0:02:23]}  Rb8 {[%clk 0:01:59]} 15. Qe2 {[%clk 0:02:15]}  Ne8 {[%clk 0:01:33]} 16. Bg5 {[%clk 0:02:04]}  f6 {[%clk 0:01:25]} 17. Be3 {[%clk 0:02:02]}  Rb3 {[%clk 0:01:24]} 18. Nd2 {[%clk 0:02:01]}  Rb7 {[%clk 0:01:18]} 19. Nc4 {[%clk 0:01:56]}  Nc7 {[%clk 0:01:01]} 20. Qd3 {[%clk 0:01:45]}  Rb3 {[%clk 0:00:56]} 21. Nd2 {[%clk 0:01:40]}  Rb4 {[%clk 0:00:54]} 22. Rea1 {[%clk 0:01:36]}  Qb7 {[%clk 0:00:40]} 23. b3 {[%clk 0:01:28]}  f5 {[%clk 0:00:37]} 24. f3 {[%clk 0:01:02]}  Nf6 {[%clk 0:00:20]} 25. a5 {[%clk 0:00:55]}  fxe4 {[%clk 0:00:19]} 26. fxe4 {[%clk 0:00:56]}  Ng4 {[%clk 0:00:19]} 27. Bg1 {[%clk 0:00:51]}  Ne5 {[%clk 0:00:19]} 28. Qc2 {[%clk 0:00:51]}  Ra8 {[%clk 0:00:15]} 29. Ra4 {[%clk 0:00:44]}  Na6 {[%clk 0:00:15]} 30. Nc4 {[%clk 0:00:31]}  Nxc4 {[%clk 0:00:13]} 31. Rxb4 {[%clk 0:00:19]}  Nxb4 {[%clk 0:00:13]} 32. Qc1 {[%clk 0:00:19]}  Ne5 {[%clk 0:00:11]} 33. Qc2 {[%clk 0:00:16]}  Qa6 {[%clk 0:00:09]} 34. Qd2 {[%clk 0:00:16]}  Qd3 {[%clk 0:00:09]} 35. Qxd3 {[%clk 0:00:15]}  Nexd3 {[%clk 0:00:10]} 36. a6 {[%clk 0:00:10]}  Bxc3 {[%clk 0:00:10]} 37. Ra5 {[%clk 0:00:11]}  Rxa6 {[%clk 0:00:10]} 38. Rb5 {[%clk 0:00:11]}  Ra2+ {[%clk 0:00:10]} 39. Kh3 {[%clk 0:00:11]}  Kf7 {[%clk 0:00:07]} 40. Be3 {[%clk 0:00:12]}  Ne5 {[%clk 0:00:07]} 41. Rb7 {[%clk 0:00:12]}  Nf3 {[%clk 0:00:04]} 42. Kg4 {[%clk 0:00:12]}  Nxh2+ {[%clk 0:00:03]} 43. Kh3 {[%clk 0:00:12]}  Nf3 {[%clk 0:00:04]} 44. Kg4 {[%clk 0:00:13]}  h5+ {[%clk 0:00:04]} 45. Kf4 {[%clk 0:00:13]}  Ne5 {[%clk 0:00:04]} 46. Kg5 {[%clk 0:00:13]}  Nbd3 {[%clk 0:00:04]} 47. Kh6 {[%clk 0:00:13]}  Rg2 {[%clk 0:00:03]} 48. Bg5 {[%clk 0:00:13]}  Rxg3 {[%clk 0:00:03]} 49. Rxe7+ {[%clk 0:00:14]}  Kf8 {[%clk 0:00:04]} 50. Re6 {[%clk 0:00:14]}  Nf7+ {[%clk 0:00:04]} 51. Kxg6 {[%clk 0:00:14]}  Nxg5 {[%clk 0:00:05]} 52. Kh6 {[%clk 0:00:12]}  Nxe4 {[%clk 0:00:05]} 53. Rxe4 {[%clk 0:00:12]}  h4 {[%clk 0:00:05]} 54. Rxh4 {[%clk 0:00:12]}  Bg7+ {[%clk 0:00:04]} 55. Kh5 {[%clk 0:00:12]}  Ne5 {[%clk 0:00:03]} 56. Re4 {[%clk 0:00:13]}  Rf3 {[%clk 0:00:03]} 57. Re1 {[%clk 0:00:12]}  Rf5+ {[%clk 0:00:03]} 58. Kh4 {[%clk 0:00:12]}  Bf6+ {[%clk 0:00:03]} 59. Kg3 {[%clk 0:00:12]}  Rg5+ {[%clk 0:00:03]} 60. Kf2 {[%clk 0:00:11]}  Rf5+ {[%clk 0:00:02]} 61. Ke3 {[%clk 0:00:11]}  Kf7 {[%clk 0:00:03]} 62. Rh1 {[%clk 0:00:11]}  Rg5 {[%clk 0:00:03]} 63. Rh7+ {[%clk 0:00:11]}  Rg7 {[%clk 0:00:04]} 64. Rh5 {[%clk 0:00:11]}  Rg3+ {[%clk 0:00:04]} 65. Ke2 {[%clk 0:00:12]}  Rxb3 {[%clk 0:00:04]} 66. Rh7+ {[%clk 0:00:13]}  Kg6 {[%clk 0:00:04]} 67. Rc7 {[%clk 0:00:14]}  Kf5 {[%clk 0:00:04]} 68. Rc8 {[%clk 0:00:14]}  Ke4 {[%clk 0:00:05]} 69. Kd2 {[%clk 0:00:15]}  Rb2+ {[%clk 0:00:05]} 70. Kc3 {[%clk 0:00:15]}  Rb5 {[%clk 0:00:04]} 71. Kc2 {[%clk 0:00:15]}  Nc4 {[%clk 0:00:04]} 72. Rf8 {[%clk 0:00:15]}  Rb2+ {[%clk 0:00:04]} 73. Kc1 {[%clk 0:00:16]}  Bd4 {[%clk 0:00:04]} 74. Rf1 {[%clk 0:00:16]}  Kd3 {[%clk 0:00:04]} 75. Rf3+ {[%clk 0:00:16]}  Ne3 {[%clk 0:00:04]} 76. Rf4 {[%clk 0:00:14]}  Rc2+ {[%clk 0:00:04]} 77. Kb1 {[%clk 0:00:14]}  Kc3 {[%clk 0:00:04]} 78. Rf3 {[%clk 0:00:13]}  Kd3 {[%clk 0:00:03]} 79. Rf4 {[%clk 0:00:10]}  c4 {[%clk 0:00:03]} 80. Rf1 {[%clk 0:00:07]}  c3 {[%clk 0:00:03]} 81. Rd1+ {[%clk 0:00:07]}  Nxd1 {[%clk 0:00:03]} 82. Ka1 {[%clk 0:00:07]}  Rc1+ {[%clk 0:00:03]} 83. Ka2 {[%clk 0:00:07]}  c2 {[%clk 0:00:04]} 84. Kb3 {[%clk 0:00:08]}  Rb1+ {[%clk 0:00:04]} 85. Ka4 {[%clk 0:00:07]}  c1=Q {[%clk 0:00:04]} 0-1


[Site "https://www.chess.com"]

[Event "Titled Tuesday Blitz July 4 Early 2023"]
[White "TomLiu777"]
[Black "Vlassov, Nikolai"]
[BlackFideId "4103360"]
[WhiteElo "2343"]
[BlackElo "2607"]
[Result "0-1"]
[Round "5"]
[TimeControl "180+2"]
[Date "2023.07.04"]
[WhiteClock "0:00:56"]
[BlackClock "0:00:34"]
[Board "163"]

1. c4 {[%clk 0:02:44]}  e5 {[%clk 0:02:59]} 2. Nc3 {[%clk 0:02:40]}  Nf6 {[%clk 0:02:58]} 3. Nf3 {[%clk 0:02:35]}  e4 {[%clk 0:02:58]} 4. Ng5 {[%clk 0:02:34]}  c6 {[%clk 0:02:59]} 5. Ngxe4 {[%clk 0:02:34]}  Nxe4 {[%clk 0:02:59]} 6. Nxe4 {[%clk 0:02:35]}  d5 {[%clk 0:02:59]} 7. cxd5 {[%clk 0:02:35]}  cxd5 {[%clk 0:02:59]} 8. Ng3 {[%clk 0:02:36]}  h5 {[%clk 0:02:59]} 9. h4 {[%clk 0:02:24]}  Bd6 {[%clk 0:02:58]} 10. d4 {[%clk 0:02:20]}  Bxg3 {[%clk 0:02:57]} 11. fxg3 {[%clk 0:02:18]}  Nc6 {[%clk 0:02:53]} 12. Bg5 {[%clk 0:02:10]}  Qb6 {[%clk 0:02:49]} 13. e3 {[%clk 0:02:09]}  Qxb2 {[%clk 0:02:46]} 14. Be2 {[%clk 0:02:08]}  Qc3+ {[%clk 0:02:38]} 15. Kf2 {[%clk 0:02:06]}  Bf5 {[%clk 0:01:46]} 16. Bxh5 {[%clk 0:01:56]}  Nb4 {[%clk 0:01:35]} 17. Rc1 {[%clk 0:01:53]}  Nd3+ {[%clk 0:01:25]} 18. Kg1 {[%clk 0:01:32]}  Qxc1 {[%clk 0:01:20]} 19. Kh2 {[%clk 0:01:17]}  Qxd1 {[%clk 0:01:18]} 20. Bxd1 {[%clk 0:01:18]}  f6 {[%clk 0:01:13]} 21. Rf1 {[%clk 0:01:13]}  Be4 {[%clk 0:01:00]} 22. Ba4+ {[%clk 0:01:10]}  Ke7 {[%clk 0:00:55]} 23. Bf4 {[%clk 0:01:08]}  g5 {[%clk 0:00:53]} 24. Bc7 {[%clk 0:01:06]}  b6 {[%clk 0:00:36]} 25. Kg1 {[%clk 0:01:03]}  Rac8 {[%clk 0:00:35]} 26. hxg5 {[%clk 0:01:03]}  Rxc7 {[%clk 0:00:34]} 27. gxf6+ {[%clk 0:00:56]}  Kf7 {[%clk 0:00:34]} 0-1


[Site "https://www.chess.com"]

[Event "Titled Tuesday Blitz July 4 Early 2023"]
[White "Korpics, Zsolt"]
[Black "Martins, Bruno Andre Leite"]
[WhiteFideId "705241"]
[BlackFideId "1942255"]
[WhiteElo "2343"]
[BlackElo "2605"]
[Result "1-0"]
[Round "5"]
[TimeControl "180+2"]
[Date "2023.07.04"]
[WhiteClock "0:01:56"]
[BlackClock "0:00:00"]
[Board "164"]

1. e4 {[%clk 0:03:00]}  c5 {[%clk 0:02:56]} 2. Nf3 {[%clk 0:03:01]}  Nf6 {[%clk 0:02:54]} 3. e5 {[%clk 0:02:57]}  Nd5 {[%clk 0:02:54]} 4. Nc3 {[%clk 0:02:58]}  Nxc3 {[%clk 0:02:55]} 5. dxc3 {[%clk 0:02:45]}  Nc6 {[%clk 0:02:55]} 6. Bd3 {[%clk 0:02:32]}  Qc7 {[%clk 0:02:54]} 7. Qe2 {[%clk 0:02:26]}  b6 {[%clk 0:02:36]} 8. Bf4 {[%clk 0:02:23]}  Bb7 {[%clk 0:01:58]} 9. Bg3 {[%clk 0:02:13]}  e6 {[%clk 0:01:58]} 10. O-O-O {[%clk 0:02:04]}  O-O-O {[%clk 0:01:53]} 11. Be4 {[%clk 0:01:57]}  h6 {[%clk 0:00:00]} 12. h4 {[%clk 0:01:56]} 1-0


[Site "https://www.chess.com"]

[Event "Titled Tuesday Blitz July 4 Early 2023"]
[White "Burmakin, Vladimir"]
[Black "Rudzinska, Michalina"]
[WhiteFideId "4105109"]
[BlackFideId "1172883"]
[WhiteElo "2605"]
[BlackElo "2335"]
[Result "1-0"]
[Round "5"]
[TimeControl "180+2"]
[Date "2023.07.04"]
[WhiteClock "0:00:33"]
[BlackClock "0:00:47"]
[Board "165"]

1. c4 {[%clk 0:03:00]}  e5 {[%clk 0:02:57]} 2. g3 {[%clk 0:03:00]}  Nc6 {[%clk 0:02:56]} 3. Bg2 {[%clk 0:03:00]}  g6 {[%clk 0:02:55]} 4. Nc3 {[%clk 0:03:00]}  Bg7 {[%clk 0:02:55]} 5. e3 {[%clk 0:03:00]}  Nge7 {[%clk 0:02:50]} 6. Nge2 {[%clk 0:03:00]}  O-O {[%clk 0:02:49]} 7. d3 {[%clk 0:03:00]}  d6 {[%clk 0:02:49]} 8. Rb1 {[%clk 0:02:59]}  a5 {[%clk 0:02:48]} 9. a3 {[%clk 0:02:59]}  Be6 {[%clk 0:02:49]} 10. b4 {[%clk 0:02:58]}  axb4 {[%clk 0:02:49]} 11. axb4 {[%clk 0:02:58]}  f5 {[%clk 0:02:48]} 12. b5 {[%clk 0:02:58]}  Na5 {[%clk 0:02:44]} 13. O-O {[%clk 0:02:52]}  c6 {[%clk 0:02:37]} 14. Bd2 {[%clk 0:01:59]}  d5 {[%clk 0:02:28]} 15. bxc6 {[%clk 0:01:58]}  bxc6 {[%clk 0:02:29]} 16. cxd5 {[%clk 0:01:54]}  cxd5 {[%clk 0:02:30]} 17. Nb5 {[%clk 0:01:54]}  Nec6 {[%clk 0:02:17]} 18. Qc2 {[%clk 0:01:47]}  Qd7 {[%clk 0:02:11]} 19. Rfc1 {[%clk 0:01:46]}  Rfc8 {[%clk 0:02:02]} 20. Qd1 {[%clk 0:01:44]}  e4 {[%clk 0:01:59]} 21. dxe4 {[%clk 0:01:37]}  dxe4 {[%clk 0:01:57]} 22. Nf4 {[%clk 0:01:17]}  Bf7 {[%clk 0:01:49]} 23. Bxa5 {[%clk 0:01:16]}  Qxd1+ {[%clk 0:01:47]} 24. Rxd1 {[%clk 0:01:15]}  Nxa5 {[%clk 0:01:41]} 25. Nd6 {[%clk 0:01:15]}  Rc7 {[%clk 0:01:37]} 26. Nxf7 {[%clk 0:01:13]}  Kxf7 {[%clk 0:01:38]} 27. Bf1 {[%clk 0:01:11]}  Rac8 {[%clk 0:01:22]} 28. Rb5 {[%clk 0:01:03]}  Nc6 {[%clk 0:01:18]} 29. Bc4+ {[%clk 0:01:01]}  Ke8 {[%clk 0:01:10]} 30. Ne6 {[%clk 0:00:51]}  Re7 {[%clk 0:01:10]} 31. Rc5 {[%clk 0:00:47]}  Bc3 {[%clk 0:01:01]} 32. Rd6 {[%clk 0:00:34]}  Na7 {[%clk 0:00:50]} 33. Rxc8+ {[%clk 0:00:33]}  Nxc8 {[%clk 0:00:51]} 34. Rd8+ {[%clk 0:00:33]}  Kf7 {[%clk 0:00:47]} 35. Rf8# {[%clk 0:00:33]} 1-0


[Site "https://www.chess.com"]

[Event "Titled Tuesday Blitz July 4 Early 2023"]
[White "Marosi, Levente"]
[Black "Rozhkov, Viacheslav"]
[WhiteFideId "747181"]
[BlackFideId "4181484"]
[WhiteElo "2575"]
[BlackElo "2328"]
[Result "0-1"]
[Round "5"]
[TimeControl "180+2"]
[Date "2023.07.04"]
[WhiteClock "0:00:10"]
[BlackClock "0:00:26"]
[Board "167"]

1. e4 {[%clk 0:02:59]}  c5 {[%clk 0:03:00]} 2. Nf3 {[%clk 0:02:59]}  Nc6 {[%clk 0:03:00]} 3. d4 {[%clk 0:03:00]}  cxd4 {[%clk 0:03:01]} 4. Nxd4 {[%clk 0:03:01]}  Nf6 {[%clk 0:03:01]} 5. Nc3 {[%clk 0:03:01]}  e6 {[%clk 0:03:01]} 6. Ndb5 {[%clk 0:03:01]}  Bb4 {[%clk 0:03:02]} 7. a3 {[%clk 0:03:01]}  Bxc3+ {[%clk 0:03:02]} 8. Nxc3 {[%clk 0:03:02]}  d5 {[%clk 0:03:03]} 9. exd5 {[%clk 0:03:03]}  exd5 {[%clk 0:03:04]} 10. Bd3 {[%clk 0:03:04]}  O-O {[%clk 0:03:03]} 11. O-O {[%clk 0:03:04]}  d4 {[%clk 0:03:04]} 12. Ne2 {[%clk 0:03:04]}  Bg4 {[%clk 0:03:05]} 13. h3 {[%clk 0:03:04]}  Bxe2 {[%clk 0:03:04]} 14. Qxe2 {[%clk 0:03:05]}  Re8 {[%clk 0:03:04]} 15. Qf3 {[%clk 0:03:05]}  Ne5 {[%clk 0:03:03]} 16. Qg3 {[%clk 0:03:04]}  Nxd3 {[%clk 0:03:03]} 17. Qxd3 {[%clk 0:03:05]}  Qd5 {[%clk 0:02:58]} 18. Bd2 {[%clk 0:02:48]}  Rac8 {[%clk 0:02:53]} 19. Rfe1 {[%clk 0:02:45]}  h6 {[%clk 0:02:45]} 20. Rxe8+ {[%clk 0:02:21]}  Rxe8 {[%clk 0:02:44]} 21. Re1 {[%clk 0:02:21]}  Rxe1+ {[%clk 0:02:39]} 22. Bxe1 {[%clk 0:02:22]}  Qe5 {[%clk 0:02:23]} 23. Kf1 {[%clk 0:01:53]}  Nd5 {[%clk 0:02:20]} 24. Bd2 {[%clk 0:01:49]}  Nf4 {[%clk 0:01:58]} 25. Qf3 {[%clk 0:01:43]}  Nd5 {[%clk 0:01:51]} 26. a4 {[%clk 0:01:31]}  g5 {[%clk 0:01:49]} 27. g3 {[%clk 0:01:30]}  Nf6 {[%clk 0:01:35]} 28. Qxb7 {[%clk 0:01:14]}  Ne4 {[%clk 0:01:28]} 29. Qc8+ {[%clk 0:00:56]}  Kg7 {[%clk 0:01:24]} 30. Bb4 {[%clk 0:00:50]}  Qf6 {[%clk 0:01:09]} 31. Be1 {[%clk 0:00:30]}  Nxg3+ {[%clk 0:01:08]} 32. Kg2 {[%clk 0:00:31]}  Nf5 {[%clk 0:01:03]} 33. Qc4 {[%clk 0:00:26]}  Nh4+ {[%clk 0:01:01]} 34. Kf1 {[%clk 0:00:26]}  Nf3 {[%clk 0:00:54]} 35. Bb4 {[%clk 0:00:19]}  Qf5 {[%clk 0:00:47]} 36. Qd3 {[%clk 0:00:14]}  Qxh3+ {[%clk 0:00:43]} 37. Ke2 {[%clk 0:00:15]}  Ng1+ {[%clk 0:00:41]} 38. Kd2 {[%clk 0:00:15]}  Qg4 {[%clk 0:00:30]} 39. Bc5 {[%clk 0:00:13]}  Nf3+ {[%clk 0:00:29]} 40. Kc1 {[%clk 0:00:10]}  Qg1+ {[%clk 0:00:26]} 0-1


[Site "https://www.chess.com"]

[Event "Titled Tuesday Blitz July 4 Early 2023"]
[White "Shapiro, Daniel"]
[Black "gueraumasague"]
[WhiteFideId "2001780"]
[WhiteElo "2322"]
[BlackElo "2522"]
[Result "1-0"]
[Round "5"]
[TimeControl "180+2"]
[Date "2023.07.04"]
[WhiteClock "0:00:02"]
[BlackClock "0:00:00"]
[Board "168"]

1. d4 {[%clk 0:03:00]}  g6 {[%clk 0:03:00]} 2. e4 {[%clk 0:02:59]}  Bg7 {[%clk 0:03:01]} 3. Nc3 {[%clk 0:02:58]}  c6 {[%clk 0:03:02]} 4. h3 {[%clk 0:02:57]}  d5 {[%clk 0:03:03]} 5. Nf3 {[%clk 0:02:50]}  Nf6 {[%clk 0:03:02]} 6. e5 {[%clk 0:02:49]}  Ne4 {[%clk 0:03:02]} 7. Bd3 {[%clk 0:02:34]}  Nxc3 {[%clk 0:03:02]} 8. bxc3 {[%clk 0:02:33]}  c5 {[%clk 0:03:03]} 9. O-O {[%clk 0:02:11]}  Nc6 {[%clk 0:02:53]} 10. a4 {[%clk 0:02:08]}  Qa5 {[%clk 0:02:46]} 11. Bd2 {[%clk 0:02:03]}  c4 {[%clk 0:02:44]} 12. Be2 {[%clk 0:02:02]}  O-O {[%clk 0:02:41]} 13. Nh2 {[%clk 0:01:55]}  f6 {[%clk 0:02:39]} 14. exf6 {[%clk 0:01:46]}  exf6 {[%clk 0:02:40]} 15. Ng4 {[%clk 0:01:43]}  Be6 {[%clk 0:02:16]} 16. Bf3 {[%clk 0:01:41]}  Bf7 {[%clk 0:02:02]} 17. Qb1 {[%clk 0:01:41]}  Rab8 {[%clk 0:02:00]} 18. Qb5 {[%clk 0:01:40]}  Rfd8 {[%clk 0:02:00]} 19. Rfe1 {[%clk 0:01:30]}  a6 {[%clk 0:01:53]} 20. Qxa5 {[%clk 0:01:21]}  Nxa5 {[%clk 0:01:54]} 21. Nh6+ {[%clk 0:01:21]}  Kf8 {[%clk 0:01:50]} 22. Re2 {[%clk 0:01:14]}  Be8 {[%clk 0:01:45]} 23. Bf4 {[%clk 0:01:02]}  Rbc8 {[%clk 0:01:44]} 24. h4 {[%clk 0:00:55]}  Bc6 {[%clk 0:01:09]} 25. Ng4 {[%clk 0:00:52]}  h5 {[%clk 0:01:06]} 26. Ne3 {[%clk 0:00:50]}  Kf7 {[%clk 0:00:53]} 27. g4 {[%clk 0:00:50]}  hxg4 {[%clk 0:00:53]} 28. Bxg4 {[%clk 0:00:51]}  f5 {[%clk 0:00:49]} 29. Bf3 {[%clk 0:00:51]}  Bf6 {[%clk 0:00:44]} 30. Bg3 {[%clk 0:00:38]}  Re8 {[%clk 0:00:43]} 31. h5 {[%clk 0:00:36]}  Re7 {[%clk 0:00:17]} 32. Kg2 {[%clk 0:00:31]}  Rg8 {[%clk 0:00:15]} 33. hxg6+ {[%clk 0:00:26]}  Kxg6 {[%clk 0:00:16]} 34. Rh1 {[%clk 0:00:24]}  Kf7 {[%clk 0:00:15]} 35. Kf1 {[%clk 0:00:18]}  Rge8 {[%clk 0:00:09]} 36. Bh5+ {[%clk 0:00:16]}  Kg7 {[%clk 0:00:09]} 37. Bxe8 {[%clk 0:00:16]}  Rxe8 {[%clk 0:00:09]} 38. Bf4 {[%clk 0:00:15]}  Kf7 {[%clk 0:00:06]} 39. Nxf5 {[%clk 0:00:14]}  Rg8 {[%clk 0:00:06]} 40. Nh6+ {[%clk 0:00:13]}  Kg6 {[%clk 0:00:06]} 41. Rg1+ {[%clk 0:00:12]}  Kh5 {[%clk 0:00:04]} 42. Nxg8 {[%clk 0:00:11]}  Bd8 {[%clk 0:00:03]} 43. Re3 {[%clk 0:00:06]}  Bd7 {[%clk 0:00:03]} 44. Reg3 {[%clk 0:00:04]}  Nc6 {[%clk 0:00:02]} 45. Rg5+ {[%clk 0:00:04]}  Kh4 {[%clk 0:00:00]} 46. Rg7 {[%clk 0:00:02]} 1-0


[Site "https://www.chess.com"]

[Event "Titled Tuesday Blitz July 4 Early 2023"]
[White "only_strong_moves"]
[Black "Vaglio Munoz, Jaime"]
[BlackFideId "6500145"]
[WhiteElo "2522"]
[BlackElo "2306"]
[Result "1-0"]
[Round "5"]
[TimeControl "180+2"]
[Date "2023.07.04"]
[WhiteClock "0:00:22"]
[BlackClock "0:00:12"]
[Board "169"]

1. d4 {[%clk 0:03:00]}  c6 {[%clk 0:02:59]} 2. c4 {[%clk 0:03:00]}  b5 {[%clk 0:02:59]} 3. cxb5 {[%clk 0:03:00]}  cxb5 {[%clk 0:02:59]} 4. e4 {[%clk 0:03:00]}  Bb7 {[%clk 0:03:00]} 5. d5 {[%clk 0:02:58]}  Nf6 {[%clk 0:02:59]} 6. Nd2 {[%clk 0:02:57]}  e6 {[%clk 0:02:57]} 7. Bxb5 {[%clk 0:02:51]}  Qa5 {[%clk 0:02:57]} 8. Bc4 {[%clk 0:02:45]}  Nxe4 {[%clk 0:02:55]} 9. Nf3 {[%clk 0:02:40]}  exd5 {[%clk 0:02:47]} 10. Bd3 {[%clk 0:02:33]}  Nc5 {[%clk 0:02:43]} 11. Bc2 {[%clk 0:02:26]}  Ba6 {[%clk 0:02:41]} 12. a3 {[%clk 0:02:13]}  Ne6 {[%clk 0:02:03]} 13. g3 {[%clk 0:02:00]}  Be7 {[%clk 0:02:01]} 14. Rb1 {[%clk 0:01:36]}  Nc6 {[%clk 0:01:58]} 15. b4 {[%clk 0:01:35]}  Qb5 {[%clk 0:01:53]} 16. a4 {[%clk 0:01:29]}  Qb7 {[%clk 0:01:43]} 17. b5 {[%clk 0:01:28]}  O-O {[%clk 0:01:36]} 18. O-O {[%clk 0:01:27]}  Qc7 {[%clk 0:01:29]} 19. bxa6 {[%clk 0:01:25]}  Qa5 {[%clk 0:01:28]} 20. Nb3 {[%clk 0:01:22]}  Qxa6 {[%clk 0:01:27]} 21. Qxd5 {[%clk 0:01:20]}  Qxa4 {[%clk 0:01:25]} 22. Nbd4 {[%clk 0:01:07]}  Qa6 {[%clk 0:01:17]} 23. Nf5 {[%clk 0:00:58]}  Bf6 {[%clk 0:01:13]} 24. Be3 {[%clk 0:00:57]}  Rab8 {[%clk 0:00:59]} 25. Qe4 {[%clk 0:00:57]}  g6 {[%clk 0:00:55]} 26. Nh6+ {[%clk 0:00:51]}  Kg7 {[%clk 0:00:55]} 27. Ng4 {[%clk 0:00:50]}  h5 {[%clk 0:00:24]} 28. Bh6+ {[%clk 0:00:40]}  Kh7 {[%clk 0:00:22]} 29. Nxf6+ {[%clk 0:00:41]}  Kxh6 {[%clk 0:00:21]} 30. Nxd7 {[%clk 0:00:41]}  Rxb1 {[%clk 0:00:21]} 31. Bxb1 {[%clk 0:00:34]}  Rd8 {[%clk 0:00:20]} 32. Nde5 {[%clk 0:00:31]}  Nxe5 {[%clk 0:00:18]} 33. Nxe5 {[%clk 0:00:32]}  Rf8 {[%clk 0:00:14]} 34. Rd1 {[%clk 0:00:30]}  Kg7 {[%clk 0:00:13]} 35. Rd7 {[%clk 0:00:29]}  Qa1 {[%clk 0:00:13]} 36. Qxg6+ {[%clk 0:00:22]}  Kh8 {[%clk 0:00:12]} 37. Qh7# {[%clk 0:00:22]} 1-0


[Site "https://www.chess.com"]